fUSD/lending_fUSD_20240216
["ID","MTS","AMOUNT","RATE_DAILY","PERIOD"]
[314181809,1708049446654,-9200.02602974,0.00039488,4]
[314181811,1708049446664,-8112.85376153,0.00039488,10]
[314181813,1708049446674,-162.06747569,0.00039488,30]
[314181815,1708049446684,-20008.10601824,0.00039488,2]
[314181817,1708049446693,-155.44208196,0.00039488,2]
[314181819,1708049446703,-444.47986482,0.00039488,120]
[314181821,1708049446711,-151.47013554,0.00039488,30]
[314181823,1708049446721,-177.60946344,0.00039488,30]
[314181824,1708049446730,-259.92686036,0.00039488,120]
[314181826,1708049446740,-243.42012289,0.00039488,30]
[314181828,1708049446749,-155.71210622,0.00039488,30]
[314181830,1708049446759,-1429.67402657,0.00039488,120]
[314181832,1708049446769,-205.39995957,0.00039488,120]
[314181834,1708049446778,-1801.19860144,0.00039488,120]
[314181836,1708049446789,-441.95851681,0.00039488,120]
[314181838,1708049446799,-200.871481,0.00039488,30]
[314181840,1708049446809,-197.19793628,0.00039488,30]
[314181842,1708049446818,-53482.41611465,0.00039488,30]
[314181844,1708049446827,-155.0,0.00039488,120]
[314181845,1708049446836,-151.021624,0.00039498,25]
[314181846,1708049446845,-1000.0,0.000395,2]
[314181847,1708049446854,-1383.45234104,0.00039519,2]
[314181848,1708049446863,-538.58,0.00039554,2]
[314181849,1708049446872,-295.0,0.00039585,7]
[314181850,1708049446882,-500.0,0.00039586,7]
[314181851,1708049446891,-207.0,0.0003959,21]
[314181852,1708049446900,-1356.96865491,0.00039613,2]
[314181853,1708049446909,-335.9,0.0003963,2]
[314181854,1708049446918,-2837.35432531,0.00039663,2]
[314181855,1708049446928,-6252.17383832,0.00039672,2]
[314181856,1708049446937,-1460.37980722,0.00039697,2]
[314181857,1708049446946,-151.021624,0.00039698,24]
[314181858,1708049446955,-500.0,0.00039698,7]
[314181859,1708049446965,-209.19864569,0.00039699,7]
[314181860,1708049446975,-150.0,0.00039699,2]
[314181861,1708049446985,-150.0,0.00039699,2]
[314181862,1708049446994,-500000.0,0.000397,30]
[314181863,1708049447006,-301.90055941,0.000397,2]
[314181864,1708049447015,-182.73442421,0.000397,4]
[314181865,1708049447025,-460.39,0.000397,3]
[314181866,1708049447034,-460.39,0.000397,3]
[314181867,1708049447044,-460.39,0.000397,3]
[314181868,1708049447053,-460.39,0.000397,3]
[314181869,1708049447062,-460.39,0.000397,3]
[314181870,1708049447071,-460.39,0.000397,3]
[314181871,1708049447080,-460.39,0.000397,3]
[314181872,1708049447089,-460.39,0.000397,3]
[314181873,1708049447099,-460.39,0.000397,3]
[314181874,1708049447108,-460.39,0.000397,3]
[314181875,1708049447117,-460.39,0.000397,3]
[314181876,1708049447126,-460.39,0.000397,3]
[314181877,1708049447135,-460.39,0.000397,3]
[314181878,1708049447144,-460.39,0.000397,3]
[314181879,1708049447153,-460.39,0.000397,3]
[314181880,1708049447162,-460.39,0.000397,3]
[314181881,1708049447172,-460.39,0.000397,3]
[314181882,1708049447182,-460.39,0.000397,3]
[314181883,1708049447191,-460.39,0.000397,3]
[314181884,1708049447200,-460.39,0.000397,3]
[314181885,1708049447209,-151.0,0.000397,7]
[314181886,1708049447218,-206.659345,0.000397,7]
[314181887,1708049447227,-153.312168,0.000397,5]
[314181888,1708049447237,-151.0,0.000397,7]
[314181889,1708049447246,-151.0,0.000397,7]
[314181890,1708049447255,-151.0,0.000397,7]
[314181891,1708049447264,-163.626146,0.000397,7]
[314181892,1708049447274,-163.626146,0.000397,7]
[314181893,1708049447282,-3000.0,0.000397,2]
[314181894,1708049447292,-155.01,0.000397,3]
[314181895,1708049447301,-151.0,0.00039714,2]
[314181896,1708049447310,-200.0,0.00039717,2]
[314181897,1708049447319,-200.0,0.00039717,2]
[314181899,1708049447328,-2000.0,0.00039717,2]
[314181900,1708049447337,-200.0,0.00039717,2]
[314181901,1708049447346,-295.0,0.00039722,7]
[314181902,1708049447355,-750.8704082,0.00039725,4]
[314181903,1708049447364,-500.0,0.00039726,7]
[314181904,1708049447373,-500.0,0.00039726,7]
[314181905,1708049447383,-500.0,0.00039726,7]
[314181906,1708049447392,-500.0,0.00039726,7]
[314181907,1708049447401,-500.0,0.00039726,7]
[314181908,1708049447410,-595.77,0.00039726,7]
[314181909,1708049447420,-671.28,0.00039726,7]
[314181910,1708049447429,-500.0,0.00039726,7]
[314181911,1708049447438,-508.9,0.00039726,7]
[314181912,1708049447447,-500.0,0.00039726,7]
[314181913,1708049447456,-500.0,0.00039726,7]
[314181915,1708049447466,-850.98,0.00039726,7]
[314181916,1708049447476,-1791.32,0.00039726,7]
[314181917,1708049447487,-617.61,0.00039726,7]
[314181918,1708049447496,-500.0,0.00039726,7]
[314181919,1708049447508,-500.0,0.00039726,7]
[314181920,1708049447518,-500.0,0.00039726,7]
[314181921,1708049447528,-1327.62,0.00039726,7]
[314181922,1708049447538,-561.2,0.00039726,7]
[314181923,1708049447549,-678.37,0.00039726,7]
[314181924,1708049447559,-574.46,0.00039726,7]
[314181925,1708049447568,-500.0,0.00039726,7]
[314181926,1708049447579,-521.88,0.00039726,7]
[314181927,1708049447589,-500.0,0.00039726,7]
[314181928,1708049447599,-500.0,0.00039726,7]
[314181929,1708049447609,-7593.28,0.00039726,7]
[314181930,1708049447619,-500.0,0.00039726,7]
[314181931,1708049447628,-547.86451926,0.00039726,7]
[314181932,1708049447673,-729.85,0.00039726,7]
[314181933,1708049447683,-500.0,0.00039726,7]
[314181934,1708049447692,-500.0,0.00039726,7]
[314181935,1708049447702,-434.77534201,0.00039726,7]
[314181936,1708049447710,-583.72,0.00039726,7]
[314181937,1708049447719,-7685.77,0.00039726,7]
[314181938,1708049447728,-500.0,0.00039726,7]
[314181939,1708049447737,-1481.67,0.00039726,7]
[314181940,1708049447746,-577.15,0.00039726,7]
[314181941,1708049447756,-1111.9,0.00039726,7]
[314181942,1708049447764,-500.0,0.00039726,7]
[314181943,1708049447774,-674.55,0.00039726,7]
[314181944,1708049447783,-564.25,0.00039726,7]
[314181945,1708049447793,-561.10504035,0.00039726,7]
[314181946,1708049447802,-707.08,0.00039732,2]
[314181947,1708049447811,-945.0,0.00039737,7]
[314181948,1708049447820,-565.0,0.00039737,7]
[314181949,1708049447829,-655.0,0.00039737,7]
[314181950,1708049447838,-180.0,0.00039737,7]
[314181951,1708049447848,-155.0,0.0003974,2]
[314181952,1708049447858,-1970.25407897,0.00039768,2]
[314181953,1708049447866,-245000.0,0.0003978,2]
[314181954,1708049447875,-191.780324,0.0003978,7]
[314181955,1708049447884,-151.961248,0.0003978,7]
[314181956,1708049447894,-151.0,0.0003978,7]
[314181957,1708049447904,-299.966791,0.0003978,7]
[314181958,1708049447913,-163.962284,0.0003978,7]
[314181959,1708049447922,-151.0,0.0003978,7]
[314181960,1708049447932,-154.516623,0.0003978,7]
[314181961,1708049447941,-151.0,0.0003978,7]
[314181962,1708049447950,-224.131239,0.0003978,7]
[314181963,1708049447960,-204.395707,0.0003978,7]
[314181964,1708049447969,-384.241331,0.0003978,7]
[314181965,1708049447984,-191.849121,0.0003978,7]
[314181966,1708049447993,-384.241331,0.0003978,7]
[314181967,1708049448002,-153.324299,0.0003978,7]
[314181968,1708049448012,-153.324299,0.0003978,7]
[314181969,1708049448023,-151.0,0.0003978,7]
[314181970,1708049448034,-159.66211,0.0003978,7]
[314181971,1708049448044,-151.0,0.0003978,7]
[314181972,1708049448054,-151.0,0.0003978,2]
[314181973,1708049448064,-151.0,0.0003978,2]
[314181974,1708049448073,-151.0,0.0003978,7]
[314181975,1708049448085,-151.0,0.0003978,7]
[314181976,1708049448094,-2024.0,0.0003979,2]
[314181977,1708049448104,-859.0,0.0003979,2]
[314181978,1708049448115,-151.021624,0.00039798,25]
[314181979,1708049448125,-500.0,0.0003981,7]
[314181980,1708049448135,-151.0,0.00039859,7]
[314181981,1708049448144,-295.0,0.00039859,7]
[314181982,1708049448154,-200.0,0.0003987,7]
[314181983,1708049448163,-200.0,0.0003987,7]
[314181984,1708049448174,-200.0,0.0003987,7]
[314181985,1708049448184,-200.0,0.0003987,7]
[314181986,1708049448313,-5841.51922888,0.00039877,2]
[314181987,1708049448323,-150.0,0.00039879,2]
[314181988,1708049448332,-150.0,0.00039879,2]
[314181989,1708049448341,-150.0,0.00039879,2]
[314181990,1708049448351,-150.0,0.00039879,2]
[314181991,1708049448360,-150.0,0.00039879,2]
[314181992,1708049448369,-150.0,0.00039879,2]
[314181993,1708049448379,-150.0,0.00039879,2]
[314181994,1708049448388,-150.0,0.00039879,2]
[314181995,1708049448398,-201.32675709,0.0003988,3]
[314181996,1708049448408,-627297.00585393,0.0003988,2]
[314181997,1708049448571,-128107.43810372,0.0003988,2]
[314181998,1708049448583,-195762.29624589,0.0003988,2]
[314181999,1708049448617,-394.6547423,0.00038356,7]
[314182000,1708049448629,-163.48611279,0.00038356,7]
[314182001,1708049448638,-91.11000961,0.0003863,7]
[314182002,1708049448649,-71.94393683,0.0003863,7]
[314182003,1708049448659,-244.58905942,0.0003988,2]
[314182004,1708049448670,-1074.10675884,0.0003988,2]
[314182005,1708049448686,-1240.71788689,0.0003988,2]
[314182006,1708049448706,-550.62989378,0.00038356,7]
[314182007,1708049448715,-598.54758667,0.00038356,2]
[314182008,1708049448725,-4726.98317247,0.0003988,2]
[314182009,1708049448778,-62187.30996531,0.0003988,2]
[314182010,1708049448903,-674.71349967,0.0003988,2]
[314182011,1708049448958,-228821.9685074,0.0003988,2]
[314182012,1708049449004,-494.33920324,0.0003988,2]
[314182013,1708049449015,-3115.77269252,0.0003988,2]
[314182014,1708049449027,-1922.11490091,0.0003988,2]
[314182015,1708049449039,-40548.10055742,0.0003988,2]
[314182016,1708049449181,-500.0,0.00038356,7]
[314182017,1708049449190,-528.35933225,0.00038356,7]
[314182018,1708049449199,-1834.47061521,0.0003978,2]
[314182019,1708049449208,-9653.61497134,0.0003988,2]
[314182020,1708049449220,-4128.51227406,0.0003988,2]
[314182021,1708049449231,-328.433,0.0003988,2]
[314182022,1708049449242,-4924.98645472,0.0003988,2]
[314182023,1708049449254,-1632.00714496,0.0003988,2]
[314182024,1708049553530,200.0,0.000303,120]
[314182026,1708050037988,10000.0,0.000303,120]
[314182027,1708050054772,10000.0,0.000303,120]
[314182042,1708050631693,-281.12119243,0.00030299,90]
[314182043,1708050631703,-156.07674205,0.000303,4]
[314182044,1708050631713,-155.0,0.00031999,4]
[314182045,1708050631722,-174.7087652,0.00032,2]
[314182046,1708050631731,-222.0,0.00032,2]
[314182047,1708050631740,-5.79634127,0.00033,2]
[314182048,1708050631812,-327.20365873,0.00033,2]
[314182049,1708050631823,-13.19789484,0.00033949,2]
[314182050,1708050631837,-552.47210516,0.00033949,2]
[314182051,1708050631847,-444.0,0.00034,2]
[314182052,1708050631857,-750.4,0.00034112,2]
[314182053,1708050631867,-662.7704,0.00034145,2]
[314182054,1708050631878,-162.52316733,0.00034145,2]
[314182055,1708050631890,-156.47,0.00034245,2]
[314182056,1708050631900,-618.72,0.00034245,2]
[314182057,1708050631909,-150.0,0.00034313,2]
[314182058,1708050631918,-313.5607,0.00034494,2]
[314182060,1708050631927,-690.04878069,0.00034494,2]
[314182062,1708050631944,-45371.37411931,0.00034494,2]
[314182063,1708050631953,-182.0,0.0003452,3]
[314182064,1708050631963,-150.0,0.0003452,2]
[314182065,1708050631973,-167.97,0.00034521,2]
[314182066,1708050631983,-499.99,0.00034521,2]
[314182067,1708050631993,-197.61262232,0.00034592,4]
[314182068,1708050632003,-201.11567192,0.00034592,2]
[314182069,1708050632013,-15713.09731564,0.00034593,4]
[314182070,1708050632022,-100000.0,0.00034594,2]
[314182071,1708050632032,-201.2477,0.00034594,2]
[314182072,1708050632041,-155.0,0.00035,4]
[314182073,1708050632050,-325.0,0.00035,2]
[314182074,1708050632059,-500.0,0.00035172,2]
[314182075,1708050632070,-152.92,0.00035175,5]
[314182076,1708050632079,-554.02453938,0.0003518,10]
[314182077,1708050632089,-6571.28841246,0.0003518,10]
[314182078,1708050632099,-567.28,0.00035299,2]
[314182079,1708050632109,-500.0,0.00035317,2]
[314182080,1708050632118,-250.0,0.00035317,111]
[314182081,1708050632127,-2372.0,0.000354,2]
[314182082,1708050632137,-250.0,0.00035788,2]
[314182083,1708050632146,-200.0,0.00035797,2]
[314182084,1708050632155,-250.0,0.00035824,2]
[314182085,1708050632164,-23900.0,0.00035866,2]
[314182086,1708050632173,-618.72,0.00035889,2]
[314182087,1708050632183,-2000.0,0.0003591,2]
[314182088,1708050632192,-249.6,0.00036147,2]
[314182089,1708050632202,-154.44,0.00036165,2]
[314182090,1708050632211,-565.67,0.00036213,2]
[314182091,1708050632220,-150.0,0.0003623,2]
[314182092,1708050632229,-1000.0,0.000367,2]
[314182093,1708050632238,-182.0,0.00036812,2]
[314182094,1708050632248,-618.72,0.00037533,2]
[314182095,1708050632257,-307.76,0.00037601,2]
[314182096,1708050632267,-1252.0,0.000378,2]
[314182097,1708050632276,-2500.0,0.000378,2]
[314182098,1708050632285,-5146.86313909,0.00038,7]
[314182099,1708050632294,-509.42722857,0.00038,2]
[314182100,1708050632303,-577.92732902,0.0003808,4]
[314182101,1708050632313,-5610.99388821,0.0003808,4]
[314182102,1708050632322,-2544.10314134,0.0003808,4]
[314182103,1708050632334,-541.70566705,0.0003808,4]
[314182104,1708050632343,-150.0,0.000381,34]
[314182105,1708050632352,-207.0,0.00038141,2]
[314182106,1708050632360,-638.22059086,0.00038255,8]
[314182107,1708050632370,-1000.0,0.00038256,2]
[314182108,1708050632380,-5000.0,0.00038256,3]
[314182109,1708050632389,-32673.4544,0.00038256,3]
[314182110,1708050632398,-153.53778308,0.00038256,2]
[314182111,1708050632407,-151.021624,0.00038298,24]
[314182112,1708050632416,-5598.42807069,0.00038336,10]
[314182113,1708050632426,-8797.52982537,0.00038346,10]
[314182114,1708050632435,-76010.6031643,0.00038346,2]
[314182115,1708050632444,-811.32211512,0.00038353,2]
[314182116,1708050632454,-1817.83734725,0.00038355,4]
[314182117,1708050632462,-355.66402785,0.00038355,4]
[314182118,1708050632471,-503.05844551,0.00038356,7]
[314182119,1708050632482,-500.0,0.00038356,7]
[314182120,1708050632491,-159.78562836,0.00038356,7]
[314182121,1708050632501,-500.0,0.00038356,7]
[314182122,1708050632510,-532.44505295,0.00038356,7]
[314182123,1708050632519,-401.21477854,0.00038356,7]
[314182124,1708050632529,-500.0,0.00038356,7]
[314182125,1708050632538,-241.96362028,0.00038356,7]
[314182126,1708050632547,-505.7701263,0.00038356,7]
[314182127,1708050632556,-533.4493114,0.00038356,7]
[314182128,1708050632565,-509.05014884,0.00038356,7]
[314182129,1708050632575,-515.701903,0.00038356,7]
[314182130,1708050632584,-418.71516764,0.00038356,7]
[314182131,1708050632594,-503.25599662,0.00038356,7]
[314182132,1708050632603,-172.04317366,0.00038356,7]
[314182133,1708050632613,-517.67316609,0.00038356,7]
[314182134,1708050632622,-500.0,0.00038356,7]
[314182135,1708050632631,-510.77737129,0.00038356,7]
[314182136,1708050632640,-500.45254752,0.00038356,7]
[314182137,1708050632650,-519.43350988,0.00038356,7]
[314182138,1708050632659,-505.91890438,0.00038356,7]
[314182139,1708050632668,-522.38192115,0.00038356,7]
[314182140,1708050632677,-1000.0,0.00038356,30]
[314182141,1708050632687,-515.58707261,0.00038356,7]
[314182142,1708050632696,-533.35843689,0.00038356,7]
[314182143,1708050632705,-505.20472239,0.00038356,7]
[314182144,1708050632714,-500.0,0.00038356,7]
[314182145,1708050632724,-528.08888004,0.00038356,7]
[314182146,1708050632733,-507.92992508,0.00038356,7]
[314182147,1708050632742,-263.39992226,0.00038356,7]
[314182148,1708050632752,-499.10318661,0.00038356,7]
[314182149,1708050632762,-514.58859824,0.00038356,7]
[314182150,1708050632771,-158.29447146,0.00038356,7]
[314182151,1708050632780,-507.98950162,0.00038356,7]
[314182152,1708050632790,-531.14975627,0.00038356,7]
[314182153,1708050632801,-500.0,0.00038356,7]
[314182154,1708050632811,-507.9332203,0.00038356,7]
[314182155,1708050632820,-512.15991006,0.00038356,7]
[314182156,1708050632829,-526.43208249,0.00038356,7]
[314182157,1708050632838,-518.80780902,0.00038356,7]
[314182158,1708050632849,-517.31953854,0.00038356,7]
[314182159,1708050632859,-627.65503287,0.00038356,7]
[314182160,1708050632870,-524.44177145,0.00038356,7]
[314182161,1708050632881,-530.82715064,0.00038356,7]
[314182162,1708050632891,-503.94935546,0.00038356,7]
[314182163,1708050632903,-516.74608323,0.00038356,7]
[314182164,1708050632913,-315.51308005,0.00038356,7]
[314182165,1708050633085,-526.24236354,0.00038356,7]
[314182166,1708050633095,-516.82154099,0.00038356,7]
[314182167,1708050633104,-500.0,0.00038356,7]
[314182168,1708050633113,-513.09374216,0.00038356,7]
[314182169,1708050633122,-509.5850002,0.00038356,7]
[314182170,1708050633132,-509.7012164,0.00038356,7]
[314182171,1708050633140,-502.99679477,0.00038356,7]
[314182172,1708050633150,-505.91773385,0.00038356,7]
[314182173,1708050633159,-500.0,0.00038356,7]
[314182174,1708050633168,-522.72113899,0.00038356,7]
[314182175,1708050633177,-523.51836019,0.00038356,7]
[314182176,1708050633186,-512.26351759,0.00038356,7]
[314182177,1708050633195,-545.02196339,0.00038356,7]
[314182178,1708050633204,-598.29497004,0.00038356,7]
[314182179,1708050633213,-515.26840174,0.00038356,7]
[314182180,1708050633222,-532.28183511,0.00038356,7]
[314182181,1708050633231,-508.03162783,0.00038356,7]
[314182182,1708050633240,-514.23900978,0.00038356,7]
[314182183,1708050633250,-594.06628057,0.00038356,7]
[314182184,1708050633259,-523.71644145,0.00038356,7]
[314182185,1708050633268,-510.813648,0.00038356,7]
[314182186,1708050633277,-522.47664279,0.00038356,7]
[314182187,1708050633287,-521.47792226,0.00038356,7]
[314182188,1708050633296,-517.64873235,0.00038356,7]
[314182189,1708050633305,-527.20707673,0.00038356,7]
[314182190,1708050633314,-531.53665813,0.00038356,7]
[314182191,1708050633323,-510.66143901,0.00038356,7]
[314182192,1708050633336,-515.88403916,0.00038356,7]
[314182193,1708050633345,-521.76431241,0.00038356,7]
[314182194,1708050633354,-507.43945001,0.00038356,7]
[314182195,1708050633363,-510.87231338,0.00038356,7]
[314182196,1708050633373,-513.22438257,0.00038356,2]
[314182197,1708050633382,-550.16690683,0.00038356,7]
[314182198,1708050633391,-526.50555131,0.00038356,7]
[314182199,1708050633400,-253.88855373,0.00038356,7]
[314182200,1708050633411,-500.0,0.00038356,7]
[314182201,1708050633420,-531.47502407,0.00038356,7]
[314182202,1708050633429,-515.99548383,0.00038356,7]
[314182203,1708050633438,-503.55455488,0.00038356,7]
[314182204,1708050633447,-155.03529304,0.00038356,7]
[314182205,1708050633456,-506.15683368,0.00038356,7]
[314182206,1708050633465,-507.5152377,0.00038356,7]
[314182207,1708050633474,-500.0,0.00038356,7]
[314182208,1708050633483,-500.0,0.00038356,7]
[314182209,1708050633492,-500.0,0.00038356,7]
[314182210,1708050633503,-510.94883585,0.00038356,7]
[314182211,1708050633513,-501.68696234,0.00038356,7]
[314182212,1708050633522,-559.23188685,0.00038356,7]
[314182213,1708050633531,-500.0,0.00038356,7]
[314182214,1708050633540,-605.77180184,0.00038356,7]
[314182215,1708050633549,-528.63576065,0.00038356,7]
[314182216,1708050633558,-500.37147172,0.00038356,7]
[314182217,1708050633567,-528.27804462,0.00038356,7]
[314182218,1708050633576,-521.55920669,0.00038356,7]
[314182219,1708050633585,-500.0,0.00038356,7]
[314182220,1708050633594,-513.67858646,0.00038356,7]
[314182221,1708050633604,-500.0,0.00038356,7]
[314182222,1708050633613,-516.96321816,0.00038356,7]
[314182223,1708050633622,-511.82429998,0.00038356,7]
[314182224,1708050633631,-531.69922956,0.00038356,7]
[314182225,1708050633640,-508.5259713,0.00038356,7]
[314182226,1708050633649,-527.14760758,0.00038356,7]
[314182227,1708050633658,-506.27117295,0.00038356,7]
[314182228,1708050633667,-501.32688125,0.00038356,7]
[314182229,1708050633676,-530.69987512,0.00038356,7]
[314182230,1708050633685,-519.17361821,0.00038356,7]
[314182231,1708050633694,-536.22202533,0.00038356,7]
[314182232,1708050633703,-512.86052184,0.00038356,7]
[314182233,1708050633712,-355.44156598,0.00038356,7]
[314182234,1708050633722,-534.95937268,0.00038356,7]
[314182235,1708050633730,-520.39895473,0.00038356,7]
[314182236,1708050633740,-519.51711885,0.00038356,7]
[314182237,1708050633749,-527.67822029,0.00038356,7]
[314182238,1708050633757,-481.55762155,0.00038356,7]
[314182239,1708050633767,-509.87951082,0.00038356,7]
[314182240,1708050633776,-526.97552737,0.00038356,7]
[314182241,1708050633785,-532.19634097,0.00038356,7]
[314182242,1708050633795,-518.50173947,0.00038356,7]
[314182243,1708050633804,-529.9263271,0.00038356,7]
[314182244,1708050633814,-530.51678668,0.00038356,7]
[314182245,1708050633823,-500.0,0.00038356,7]
[314182246,1708050633832,-526.39764479,0.00038356,7]
[314182247,1708050633841,-534.29845135,0.00038356,7]
[314182248,1708050633850,-508.54383415,0.00038356,7]
[314182249,1708050633859,-529.0115854,0.00038356,7]
[314182250,1708050633869,-523.20723884,0.00038356,7]
[314182251,1708050633878,-508.53311246,0.00038356,7]
[314182252,1708050633888,-507.53716653,0.00038356,7]
[314182253,1708050633897,-521.2292541,0.00038356,7]
[314182254,1708050633907,-522.53769616,0.00038356,7]
[314182255,1708050633917,-626.57671358,0.00038356,7]
[314182256,1708050633926,-505.41212891,0.00038356,7]
[314182257,1708050633935,-500.0,0.00038356,7]
[314182258,1708050633945,-541.0561054,0.00038356,7]
[314182259,1708050633954,-500.0,0.00038356,7]
[314182260,1708050633964,-500.0,0.00038356,7]
[314182261,1708050633974,-500.0,0.00038356,7]
[314182262,1708050633983,-567.53931259,0.00038356,7]
[314182263,1708050633994,-500.0,0.00038356,7]
[314182264,1708050634004,-506.55372344,0.00038356,7]
[314182265,1708050634013,-532.15458845,0.00038356,2]
[314182266,1708050634023,-531.40835124,0.00038356,7]
[314182267,1708050634033,-596.31698387,0.00038356,7]
[314182268,1708050634042,-501.01106843,0.00038356,2]
[314182269,1708050634051,-1040.63890317,0.00038356,120]
[314182270,1708050634061,-500.0,0.00038356,7]
[314182271,1708050634070,-500.0,0.00038356,2]
[314182272,1708050634080,-557.89086915,0.00038356,7]
[314182273,1708050634089,-500.0,0.00038356,7]
[314182274,1708050634099,-500.0,0.00038356,7]
[314182275,1708050634108,-261.40330935,0.00038356,7]
[314182276,1708050634117,-562.1045642,0.00038356,7]
[314182277,1708050634126,-561.46383427,0.00038356,7]
[314182278,1708050634135,-563.8773791,0.00038356,7]
[314182279,1708050634144,-500.0,0.00038356,7]
[314182280,1708050634153,-229.787994,0.00038356,7]
[314182281,1708050634162,-538.54619025,0.00038356,7]
[314182282,1708050634173,-521.40355491,0.00038356,7]
[314182283,1708050634182,-559.65203861,0.00038356,7]
[314182284,1708050634191,-553.79799909,0.00038356,7]
[314182285,1708050634200,-512.2829418,0.00038356,7]
[314182286,1708050634211,-589.13716516,0.00038356,7]
[314182287,1708050634219,-513.33869425,0.00038356,7]
[314182288,1708050634228,-549.97270574,0.00038356,7]
[314182289,1708050634237,-559.20266147,0.00038356,7]
[314182290,1708050634246,-543.02795,0.00038356,7]
[314182291,1708050634256,-511.73117267,0.00038356,7]
[314182292,1708050634265,-500.0,0.00038356,7]
[314182293,1708050634275,-533.62964253,0.00038356,7]
[314182294,1708050634284,-538.84342157,0.00038356,7]
[314182295,1708050634293,-524.93268645,0.00038356,7]
[314182296,1708050634303,-564.89469432,0.00038356,7]
[314182297,1708050634313,-516.75041181,0.00038356,7]
[314182298,1708050634323,-515.03912371,0.00038356,7]
[314182299,1708050634336,-246.85358127,0.00038356,7]
[314182300,1708050634347,-554.76710687,0.00038356,7]
[314182301,1708050634356,-520.27148613,0.00038356,7]
[314182302,1708050634365,-532.54297278,0.00038356,7]
[314182303,1708050634374,-500.0,0.00038356,7]
[314182304,1708050634383,-512.26474289,0.00038356,7]
[314182305,1708050634392,-518.37438179,0.00038356,7]
[314182306,1708050634402,-503.18974422,0.00038356,7]
[314182307,1708050634413,-517.04943863,0.00038356,7]
[314182308,1708050634421,-505.61348276,0.00038356,7]
[314182309,1708050634430,-538.87889591,0.00038356,7]
[314182310,1708050634439,-674.18115515,0.00038356,2]
[314182311,1708050634448,-497.26533016,0.00038356,7]
[314182312,1708050634457,-544.77220991,0.00038356,7]
[314182313,1708050634468,-507.63675239,0.00038356,2]
[314182314,1708050634478,-567.47838121,0.00038356,7]
[314182315,1708050634488,-500.0,0.00038356,7]
[314182316,1708050634497,-541.15510014,0.00038356,7]
[314182317,1708050634507,-529.89677726,0.00038356,7]
[314182318,1708050634516,-522.39645952,0.00038356,7]
[314182319,1708050634525,-557.39123242,0.00038356,7]
[314182320,1708050634534,-546.70981302,0.00038356,7]
[314182321,1708050634543,-500.0,0.00038356,7]
[314182322,1708050634552,-538.9676061,0.00038356,7]
[314182323,1708050634561,-500.0,0.00038356,7]
[314182324,1708050634570,-559.32622389,0.00038356,7]
[314182325,1708050634580,-555.87412958,0.00038356,7]
[314182326,1708050634589,-514.70921375,0.00038356,7]
[314182327,1708050634597,-566.37461055,0.00038356,7]
[314182328,1708050634607,-536.59785184,0.00038356,7]
[314182329,1708050634616,-500.0,0.00038356,7]
[314182330,1708050634626,-500.0,0.00038356,7]
[314182331,1708050634635,-500.0,0.00038356,7]
[314182332,1708050634644,-542.79580936,0.00038356,7]
[314182333,1708050634652,-500.0,0.00038356,7]
[314182334,1708050634662,-500.0,0.00038356,7]
[314182335,1708050634671,-554.95099141,0.00038356,7]
[314182336,1708050634680,-546.25061722,0.00038356,7]
[314182337,1708050634689,-500.0,0.00038356,7]
[314182338,1708050634698,-553.02545294,0.00038356,7]
[314182339,1708050634706,-500.0,0.00038356,7]
[314182340,1708050634715,-555.78860315,0.00038356,7]
[314182341,1708050634724,-649.18780338,0.00038356,7]
[314182342,1708050634733,-550.819179,0.00038356,7]
[314182343,1708050634742,-556.63669532,0.00038356,7]
[314182344,1708050634752,-250.0,0.00038356,7]